Cogmind - Beta 16 --- EXPLORER MODE // 2025.11.11 @ 19:11:46 Player: Leif Result: Destroyed by Y-72 Warden with Railgun Performance ------------- Evolutions (9) 4500 Regions Visited (14) 2800 Robots Destroyed (0) 0 Value Destroyed (0) 0 Prototype IDs (5) 100 Alien Tech Used (0) 0 Bonus (7946) 7946 TOTAL SCORE: 15346 Bonus ------- Pacifist 7906 Follower Combat Kills 40 Cogmind --------- Core Integrity 0/1600 Matter 266/300 Energy 98/100 System Corruption 27% Temperature Cool (9) Movement Core (50) Location -1/Access Parts ------- > --- POWER (2) -------- (None) > --- PROPULSION (20) -- (None) > --- UTILITY (2) ------ (None) > --- WEAPON (2) ------- (None) > --- INVENTORY (5) ---- (None) Peak State ------------ > --- POWER ------------ Quantum Reactor Light Quantum Reactor > --- PROPULSION ------- Improved Heavy Treads Heavy Siege Treads Heavy Siege Treads Heavy Siege Treads Armored Heavy Treads Armored Heavy Treads Biometal Heavy Treads Biometal Heavy Treads Enhanced Armored Heavy Treads Advanced Heavy Siege Treads > --- UTILITY ---------- Improved Power Shielding > --- WEAPON ----------- (None) > --- INVENTORY -------- (None) [Rating: 183] Favorites ----------- Power Light Fission Core Engine Improved Deuterium Engine Power Core Light Fission Core Reactor Antimatter Reactor Propulsion Flexi-carbon Leg Treads Biometal Heavy Treads Leg Flexi-carbon Leg Flight Unit Q-thruster Utility Hardened Medium Armor Plating Protection Hardened Medium Armor Plating Weapon None Build | -11 -10 -9 -8 -7 -6 -6 -5 -5 -5 -4 -4 -3 -2 -1 ------- Run | Yrd Mat Mat Mat Fac Fac Ext Fac Was Fac Fac Arm Res Res Acc Slots Evolved 19 | . 1 2 2 2 2 . 2 . . 2 . 2 2 2 Power 1 | . 1 . . . . . . . . . . . . . Propulsion 18 | . . 2 2 2 2 . 2 . . 2 . 2 2 2 Utility . | . . . . . . . . . . . . . . . Weapon . | . . . . . . . . . . . . . . . Parts Attached 80 | . . . 5 1 13 . 4 11 3 9 7 6 4 17 Power 15 | . . . 1 1 3 . 1 . 1 1 2 1 1 3 Engine 2 | . . . . 1 1 . . . . . . . . . Core 8 | . . . 1 . 2 . 1 . 1 . 2 1 . . Reactor 5 | . . . . . . . . . . 1 . . 1 3 Propulsion 60 | . . . 4 . 10 . 3 8 2 8 4 5 3 13 Treads 15 | . . . . . . . . . . . . 2 . 13 Leg 41 | . . . 4 . 10 . 3 8 2 8 4 2 . . Wheel . | . . . . . . . . . . . . . . . Hover . | . . . . . . . . . . . . . . . Flight 4 | . . . . . . . . . . . . 1 3 . Utility 5 | . . . . . . . . 3 . . 1 . . 1 Device . | . . . . . . . . . . . . . . . Storage . | . . . . . . . . . . . . . . . Processor . | . . . . . . . . . . . . . . . Hackware . | . . . . . . . . . . . . . . . Protection 5 | . . . . . . . . 3 . . 1 . . 1 Artifact . | . . . . . . . . . . . . . . . Weapon . | . . . . . . . . . . . . . . . Energy Gun . | . . . . . . . . . . . . . . . Energy Cannon . | . . . . . . . . . . . . . . . Ballistic Gun . | . . . . . . . . . . . . . . . Ballistic Cannon . | . . . . . . . . . . . . . . . Launcher . | . . . . . . . . . . . . . . . Special Weapon . | . . . . . . . . . . . . . . . Impact Weapon . | . . . . . . . . . . . . . . . Slashing Weapon . | . . . . . . . . . . . . . . . Piercing Weapon . | . . . . . . . . . . . . . . . Special Melee Weapon . | . . . . . . . . . . . . . . . Unidentified Prototypes 5 | . . . . 2 . . . 2 . . . . . 1 Parts Lost 39 | . . . 4 1 . . 3 . 5 . 12 1 4 9 Power 7 | . . . 1 1 . . . . 1 . 2 . . 2 Propulsion 29 | . . . 3 . . . 3 . 2 . 9 1 4 7 Utility 3 | . . . . . . . . . 2 . 1 . . . Weapon . | . . . . . . . . . . . . . . . Highest Loss Streak 12 | . . . 3 1 . . 2 . 3 . 12 1 3 2 To Critical Strikes 2 | . . . . . . . . . . . 2 . . . Average Backups . | . . . . . . . . 1 1 . 1 . 1 . Power . | . . . . . . . . 1 . . . . . . Propulsion . | . . . . . . . . . . . . . 1 . Utility . | . . . . . . . . . . . . . . . Weapon . | . . . . . . . . . . . . . . . Tool/Special . | . . . . . . . . . . . . . . . Unused Backups 1 | . . . . . . . . . . . 1 . . . Power . | . . . . . . . . . . . . . . . Propulsion . | . . . . . . . . . . . . . . . Utility 1 | . . . . . . . . . . . 1 . . . Weapon . | . . . . . . . . . . . . . . . Tool/Special . | . . . . . . . . . . . . . . . Average Slot Usage (%) 48 | . . . 28 . 62 75 66 68 71 64 57 8 8 34 Core 4 | . . . 4 . 5 6 9 11 9 5 6 2 . . Reactor 1 | . . . . . . . . . . 4 2 . 1 4 Treads 5 | . . . . . . . . . . . . 4 . 28 Leg 33 | . . . 24 . 53 62 55 55 52 54 46 1 . . Protection 1 | . . . . . . . . 2 9 . 2 . . . Peak Build Rating 183 | . . . 13 6 53 52 68 80 83 96 104 51 38 183 Average Rating 68 | . . . 9 . 44 52 54 72 78 91 87 24 20 127 On Entrance 30 | . . . . . . 52 52 68 80 72 94 . 11 26 Avg Prop Armor Cover (%) 8 | . . . 16 . 5 2 2 . . 11 9 45 12 14 Naked Turns 456 | . 41 47 45 99 23 . . . . . 9 54 49 89 Heaviest Build 41 | . . . 7 . 17 17 21 37 37 30 41 7 8 37 Greatest Support 715 | 3 3 3 50 3 175 160 207 220 225 263 266 150 75 715 Greatest Overweight (x) . | . . . . . . . . . . . . . . . Average Overweight (x) . | . . . . . . . . . . . . . . . Largest Inventory Capacity 5 | 5 5 5 5 5 5 5 5 5 5 5 5 5 5 5 Average Capacity 5 | 5 5 5 5 5 5 5 5 5 5 5 5 5 5 5 Most Carried 5 | . . . 5 1 5 . 4 5 5 4 5 5 5 5 Average Carried 1 | . . . . . . . . 1 1 . 2 . 3 . Final Capacity 5 | 5 5 5 5 5 5 5 5 5 5 5 5 5 5 5 Final Carried 4 | . . . . 1 . . 1 1 . 1 . 4 1 . Class Distribution -------------------- 100% | Hacker-Mutant Dominant Class ---------------- Hacker-Mutant | -10/Materials Hacker-Mutant | -9/Materials Hacker-Mutant | -8/Materials Hacker-Mutant | -7/Factory Hacker-Mutant | -6/Factory Hacker-Mutant | -6/Extension Hacker-Mutant | -5/Factory Hacker-Mutant | -5/Waste Hacker-Mutant | -5/Factory Hacker-Mutant | -4/Factory Hacker-Mutant | -4/Armory Hacker-Mutant | -3/Research Hacker-Mutant | -2/Research Hacker-Mutant | -1/Access Resources | -11 -10 -9 -8 -7 -6 -6 -5 -5 -5 -4 -4 -3 -2 -1 ----------- Run | Yrd Mat Mat Mat Fac Fac Ext Fac Was Fac Fac Arm Res Res Acc Matter Collected 1101 | 200 . . . 33 20 81 65 132 2 . 151 128 146 143 Remotely . | . . . . . . . . . . . . . . . Salvage Created . | . . . . . . . . . . . . . . . Parts . | . . . . . . . . . . . . . . . Haulers Intercepted . | . . . . . . . . . . . . . . . Recyclers Shooed . | . . . . . . . . . . . . . . . Parts Field Recycled . | . . . . . . . . . . . . . . . Retrieved Matter . | . . . . . . . . . . . . . . . Parts Self-Destructed . | . . . . . . . . . . . . . . . Prevented . | . . . . . . . . . . . . . . . Parts Restored . | . . . . . . . . . . . . . . . Kills | -11 -10 -9 -8 -7 -6 -6 -5 -5 -5 -4 -4 -3 -2 -1 ------- Run | Yrd Mat Mat Mat Fac Fac Ext Fac Was Fac Fac Arm Res Res Acc Combat Hostiles Destroyed . | . . . . . . . . . . . . . . . Classes Destroyed . | . . . . . . . . . . . . . . . Best Kill Streak . | . . . . . . . . . . . . . . . Combat Bots Only . | . . . . . . . . . . . . . . . Max Kills in Single Turn . | . . . . . . . . . . . . . . . Gunslinging . | . . . . . . . . . . . . . . . Exploded . | . . . . . . . . . . . . . . . Melee . | . . . . . . . . . . . . . . . Uniques/NPCs Destroyed . | . . . . . . . . . . . . . . . Combat | -11 -10 -9 -8 -7 -6 -6 -5 -5 -5 -4 -4 -3 -2 -1 -------- Run | Yrd Mat Mat Mat Fac Fac Ext Fac Was Fac Fac Arm Res Res Acc Hostile Shots Fired 2729 | . 8 19 138 . 87 96 91 . 325 95 671 215 60 924 Missed 1127 | . 2 4 59 . 44 39 26 . 146 56 325 101 33 292 Hits 1602 | . 6 15 79 . 43 57 65 . 179 39 346 114 27 632 Projectile 1602 | . 6 15 79 . 43 57 65 . 179 39 346 114 27 632 AOE 5 | . . . . . . . . . 3 . . . . 2 Critical Strikes 80 | . . 1 5 . . 1 2 . 7 5 19 4 1 35 Actively Blocked 1 | . . . . . . . . . . . . . . 1 Part Disruptions 7 | . . . . . . . . . . 1 . . . 6 Damage Taken 19927 | . 36 130 741 . 212 489 677 . 2359 525 3693 1117 657 9291 Core 3841 | . 36 130 293 . 36 79 115 . 128 44 530 545 296 1609 Absorbed by Shields . | . . . . . . . . . . . . . . . Reduced by Siege Mode 30 | . . . . . . . . . . . . . . 30 Redirected to Shielding 73 | . . . . . . . . . . . . . . 73 Ignored by Resistances 11773 | . 21 79 449 . 157 309 406 . 1370 314 2228 666 374 5400 Regen/Repaired (Parts) 41 | . . . . . . . . . 41 . . . . . Core Remaining (%) 74 | 100 85 67 46 100 . 86 . . 75 . 50 58 79 . Volleys Fired . | . . . . . . . . . . . . . . . Largest . | . . . . . . . . . . . . . . . Hottest . | . . . . . . . . . . . . . . . Shots Fired . | . . . . . . . . . . . . . . . Gun . | . . . . . . . . . . . . . . . Cannon . | . . . . . . . . . . . . . . . Launcher . | . . . . . . . . . . . . . . . Special . | . . . . . . . . . . . . . . . Kinetic . | . . . . . . . . . . . . . . . Thermal . | . . . . . . . . . . . . . . . Explosive . | . . . . . . . . . . . . . . . Electromagnetic . | . . . . . . . . . . . . . . . Robot Hit Streak . | . . . . . . . . . . . . . . . Robot Miss Streak . | . . . . . . . . . . . . . . . Penetration Max . | . . . . . . . . . . . . . . . Secondary Targets . | . . . . . . . . . . . . . . . Shots Hit Robots . | . . . . . . . . . . . . . . . Core Hits 6 | . . . 1 . . . . . 1 . 1 . . 3 Critical Kills . | . . . . . . . . . . . . . . . Critical Parts Destroyed . | . . . . . . . . . . . . . . . Critical Strikes . | . . . . . . . . . . . . . . . Melee Attacks . | . . . . . . . . . . . . . . . Impact . | . . . . . . . . . . . . . . . Slashing . | . . . . . . . . . . . . . . . Piercing . | . . . . . . . . . . . . . . . Sneak Attacks . | . . . . . . . . . . . . . . . Combat Hostiles . | . . . . . . . . . . . . . . . Follow-up Attacks . | . . . . . . . . . . . . . . . Damage Inflicted 201 | . 18 . 6 . . 12 13 . 21 6 51 3 . 71 Guns . | . . . . . . . . . . . . . . . Cannons . | . . . . . . . . . . . . . . . Explosions . | . . . . . . . . . . . . . . . Melee . | . . . . . . . . . . . . . . . Ramming 201 | . 18 . 6 . . 12 13 . 21 6 51 3 . 71 Kinetic . | . . . . . . . . . . . . . . . Thermal . | . . . . . . . . . . . . . . . Explosive . | . . . . . . . . . . . . . . . Electromagnetic . | . . . . . . . . . . . . . . . Impact . | . . . . . . . . . . . . . . . Slashing . | . . . . . . . . . . . . . . . Piercing . | . . . . . . . . . . . . . . . Highest Corruption 27 | . . . . . . . . . 4 2 3 . . 27 Average Corruption 7 | . . . . . . . . . 2 1 2 . . 16 Corruption Purged . | . . . . . . . . . . . . . . . Corruption Blocked . | . . . . . . . . . . . . . . . Effects 29 | . . . . . . . . . . 1 7 . . 21 Message Errors 9 | . . . . . . . . . . . 1 . . 8 Matter Fused 5 | . . . . . . . . . . . 3 . . 2 Heat Flow Errors 3 | . . . . . . . . . . . 1 . . 2 Energy Discharges 2 | . . . . . . . . . . . . . . 2 Parts Rejected 1 | . . . . . . . . . . . 1 . . . Data Loss (minor) 3 | . . . . . . . . . . 1 1 . . 1 Data Loss (major) 1 | . . . . . . . . . . . . . . 1 Misdirections 5 | . . . . . . . . . . . . . . 5 Overload Shots . | . . . . . . . . . . . . . . . Overflow Damage . | . . . . . . . . . . . . . . . Projectiles . | . . . . . . . . . . . . . . . Explosions . | . . . . . . . . . . . . . . . Melee . | . . . . . . . . . . . . . . . Knockbacks 1 | . . . . . . . . . . . . . . 1 Impact 1 | . . . . . . . . . . . . . . 1 Kinetic . | . . . . . . . . . . . . . . . Secondary . | . . . . . . . . . . . . . . . Self-Inflicted Damage 31 | . 9 . . . . . . . . . 1 . . 21 Shots . | . . . . . . . . . . . . . . . Rammed 24 | . 1 . . . . . . . . . 1 . . 22 Targets Rammed 55 | . 1 . 3 . . 4 5 . 4 2 10 4 . 22 Kicked 31 | . . . 3 . . 4 5 . 4 2 9 4 . . Crushed . | . . . . . . . . . . . . . . . Highest Temperature 311 | . . . 18 . 16 205 20 12 99 37 311 1 . 272 Average Temperature 64 | . . . 9 . 7 68 6 6 34 11 152 1 . 29 Received Heat Transfer 4916 | . . 108 522 . 117 356 252 . 591 190 959 129 99 1593 Effects 2 | . . . . . . . . . . . 2 . . . Energy Bleed 1 | . . . . . . . . . . . 1 . . . Short Circuit 1 | . . . . . . . . . . . 1 . . . Siege Activations 1 | . . . . . . . . . . . . . . 1 Total Turns 3 | . . . . . . . . . . . . . . 3 Longest Duration 3 | . . . . . . . . . . . . . . 3 Martial Activations . | . . . . . . . . . . . . . . . Shielding Activations . | . . . . . . . . . . . . . . . Robots Disrupted . | . . . . . . . . . . . . . . . Combat Hostiles . | . . . . . . . . . . . . . . . Robots Corrupted . | . . . . . . . . . . . . . . . Combat Hostiles . | . . . . . . . . . . . . . . . Parts Fried . | . . . . . . . . . . . . . . . Impact Corruptions . | . . . . . . . . . . . . . . . Robots Melted . | . . . . . . . . . . . . . . . Combat Hostiles . | . . . . . . . . . . . . . . . Parts Melted . | . . . . . . . . . . . . . . . Heat Transferred . | . . . . . . . . . . . . . . . Parts Sabotaged . | . . . . . . . . . . . . . . . Parts Stolen . | . . . . . . . . . . . . . . . Parts Stripped . | . . . . . . . . . . . . . . . Power Chain Reactions . | . . . . . . . . . . . . . . . Alert | -11 -10 -9 -8 -7 -6 -6 -5 -5 -5 -4 -4 -3 -2 -1 ------- Run | Yrd Mat Mat Mat Fac Fac Ext Fac Was Fac Fac Arm Res Res Acc Maximum Alert Level . | . . . . . . . . . . . . . . . Low Security (%) 100 | 100 100 100 100 100 100 100 100 100 100 100 100 100 100 100 Level 1 . | . . . . . . . . . . . . . . . Level 2 . | . . . . . . . . . . . . . . . Level 3 . | . . . . . . . . . . . . . . . Level 4 . | . . . . . . . . . . . . . . . Level 5 . | . . . . . . . . . . . . . . . High Security . | . . . . . . . . . . . . . . . Max Security . | . . . . . . . . . . . . . . . Peak Influence 95 | . . . 75 . 30 33 15 . 95 19 35 60 60 90 Initial 19 | . . . . . . . . . . 19 . . 5 . Average 7 | . . . 16 . 3 2 1 . 15 1 3 15 19 8 Influence Increases 1093 | . . . 124 . 60 48 30 . 240 . 126 150 105 210 Destroy 0b10 Robot/C 20 | . . . . . . 20 . . . . . . . . Destroy Leader 10 | . . . . . . 10 . . . . . . . . Allied During Kill 3 | . . . . . . 3 . . . . . . . . Successful Hack 40 | . . . 4 . . 15 . . . . 21 . . . Partial Spotted 30 | . . . . . . . . . 30 . . . . . Lose Combat Pursuer 990 | . . . 120 . 60 . 30 . 210 . 105 150 105 210 Influence Decreases 1033 | . . . 124 . 60 48 30 . 185 55 126 135 120 150 Entered New Map 46 | . . . . . . . . . . 36 . . 10 . Time Decay 817 | . . . 84 . 60 38 30 . 150 19 76 135 95 130 Lost Part 160 | . . . 40 . . . . . 35 . 50 . 15 20 Lost Ally 10 | . . . . . . 10 . . . . . . . . Squads Dispatched 26 | . . 1 2 . 1 2 1 . 3 4 4 1 1 6 Investigation 7 | . . . . . . 1 . . 2 1 2 1 . . Extermination 7 | . . . . . . . 1 . 1 1 1 . 1 2 Reinforcement 12 | . . 1 2 . 1 1 . . . 2 1 . . 4 Assault . | . . . . . . . . . . . . . . . Garrison . | . . . . . . . . . . . . . . . Intercept . | . . . . . . . . . . . . . . . Searches Triggered . | . . . . . . . . . . . . . . . Construction Impeded 1 | . . . . . . 1 . . . . . . . . Haulers Reinforced 1 | . . . . . . . . . . 1 . . . . Active Scanning Responses . | . . . . . . . . . . . . . . . Cargo Convoy Interrupts . | . . . . . . . . . . . . . . . Stealth | -11 -10 -9 -8 -7 -6 -6 -5 -5 -5 -4 -4 -3 -2 -1 --------- Run | Yrd Mat Mat Mat Fac Fac Ext Fac Was Fac Fac Arm Res Res Acc Distress Signals 10 | . . 1 1 . . . . . 2 . 2 1 . 3 Communications Jammed . | . . . . . . . . . . . . . . . Distress Signals . | . . . . . . . . . . . . . . . Times Spotted 198 | . 3 8 21 2 5 9 10 . 23 13 35 15 17 37 Peak Tracking Total 24 | . 3 7 9 2 4 6 9 . 11 11 24 8 12 17 Tactical Retreats 29 | . . . 3 . 2 . 1 . 6 . 3 4 5 5 Traps | -11 -10 -9 -8 -7 -6 -6 -5 -5 -5 -4 -4 -3 -2 -1 ------- Run | Yrd Mat Mat Mat Fac Fac Ext Fac Was Fac Fac Arm Res Res Acc Traps Triggered 14 | . . . 1 . . 1 1 . 4 1 1 2 1 2 Indirectly . | . . . . . . . . . . . . . . . Trap Hack Attempts . | . . . . . . . . . . . . . . . Triggered . | . . . . . . . . . . . . . . . Disarmed . | . . . . . . . . . . . . . . . Reprogrammed . | . . . . . . . . . . . . . . . Reused . | . . . . . . . . . . . . . . . Traps Extracted . | . . . . . . . . . . . . . . . Installed . | . . . . . . . . . . . . . . . Triggered . | . . . . . . . . . . . . . . . Machines | -11 -10 -9 -8 -7 -6 -6 -5 -5 -5 -4 -4 -3 -2 -1 ---------- Run | Yrd Mat Mat Mat Fac Fac Ext Fac Was Fac Fac Arm Res Res Acc Machines Disabled 1 | . . . . . . 1 . . . . . . . . Max in Single Turn . | . . . . . . . . . . . . . . . Garrison Access 1 | . . . . . . . . . . 1 . . . . Machines Repaired . | . . . . . . . . . . . . . . . Machines Dismantled . | . . . . . . . . . . . . . . . Machines Sabotaged . | . . . . . . . . . . . . . . . Overloaded Fab Kills . | . . . . . . . . . . . . . . . Hacking | -11 -10 -9 -8 -7 -6 -6 -5 -5 -5 -4 -4 -3 -2 -1 --------- Run | Yrd Mat Mat Mat Fac Fac Ext Fac Was Fac Fac Arm Res Res Acc Machines Accessed 17 | . . . 1 1 1 7 . . 1 2 2 . 1 1 Terminals 13 | . . . 1 . 1 7 . . . 1 1 . 1 1 Fabricators . | . . . . . . . . . . . . . . . Repair Stations 2 | . . . . . . . . . 1 . 1 . . . Recycling Units 1 | . . . . 1 . . . . . . . . . . Scanalyzers . | . . . . . . . . . . . . . . . Garrison Access 1 | . . . . . . . . . . 1 . . . . Total Hacks 39 | . . . 5 2 1 14 . . 3 4 7 . 1 2 Successful 17 | . . . 1 1 1 7 . . 2 1 1 . 1 2 Failed 22 | . . . 4 1 . 7 . . 1 3 6 . . . Catastrophic 1 | . . . . . . . . . . . 1 . . . Database Lockouts . | . . . . . . . . . . . . . . . Manual 6 | . . . 6 . . . . . . . . . . . Terminals 30 | . . . 5 . 1 14 . . . 3 4 . 1 2 Fabricators . | . . . . . . . . . . . . . . . Repair Stations 6 | . . . . . . . . . 3 . 3 . . . Recycling Units 2 | . . . . 2 . . . . . . . . . . Scanalyzers . | . . . . . . . . . . . . . . . Garrison Access 1 | . . . . . . . . . . 1 . . . . Terminal Hacks 12 | . . . . . 1 7 . . . . 1 . 1 2 Record 2 | . . . . . . . . . . . . . . 2 Robot Analysis 1 | . . . . . . . . . . . 1 . . . Open Door 6 | . . . . . 1 5 . . . . . . . . Open DSF 1 | . . . . . . . . . . . . . 1 . Alert Level 1 | . . . . . . 1 . . . . . . . . Locate Traps 1 | . . . . . . 1 . . . . . . . . Fabricator Hacks . | . . . . . . . . . . . . . . . Repair Station Hacks 2 | . . . . . . . . . 2 . . . . . Scan Component 1 | . . . . . . . . . 1 . . . . . Repair 1 | . . . . . . . . . 1 . . . . . Recycling Unit Hacks 1 | . . . . 1 . . . . . . . . . . Retrieve Components 1 | . . . . 1 . . . . . . . . . . Scanalyzer . | . . . . . . . . . . . . . . . Garrison Access Hacks 1 | . . . . . . . . . . 1 . . . . Seal Access 1 | . . . . . . . . . . 1 . . . . Unauthorized Hacks 1 | . . . 1 . . . . . . . . . . . Terminals 1 | . . . 1 . . . . . . . . . . . Assimilate 1 | . . . 1 . . . . . . . . . . . Fabricators . | . . . . . . . . . . . . . . . Repair Stations . | . . . . . . . . . . . . . . . Recycling Units . | . . . . . . . . . . . . . . . Scanalyzers . | . . . . . . . . . . . . . . . Garrison Access . | . . . . . . . . . . . . . . . Data Cores Recovered . | . . . . . . . . . . . . . . . Used . | . . . . . . . . . . . . . . . Hacking Detections 8 | . . . 1 . . 2 . . 1 1 2 . . 1 Full Trace Events 5 | . . . . . . 1 . . 1 1 2 . . . Feedback Events . | . . . . . . . . . . . . . . . Feedback Blocked . | . . . . . . . . . . . . . . . Robot Schematics Acquired . | . . . . . . . . . . . . . . . Robots Built . | . . . . . . . . . . . . . . . Authchips . | . . . . . . . . . . . . . . . Time . | . . . . . . . . . . . . . . . Total Robot Build Rating . | . . . . . . . . . . . . . . . Part Schematics Acquired . | . . . . . . . . . . . . . . . Parts Built . | . . . . . . . . . . . . . . . Authchips . | . . . . . . . . . . . . . . . Time . | . . . . . . . . . . . . . . . Total Part Build Rating . | . . . . . . . . . . . . . . . Part Studies Acquired . | . . . . . . . . . . . . . . . Parts Repaired 1 | . . . . . . . . . 1 . . . . . Time 50 | . . . . . . . . . 50 . . . . . Parts Recycled . | . . . . . . . . . . . . . . . Recycled Matter . | . . . . . . . . . . . . . . . Retrieved Matter . | . . . . . . . . . . . . . . . Retrieved Components 2 | . . . . 2 . . . . . . . . . . Parts Scanalyzed . | . . . . . . . . . . . . . . . Part Schematics Acquired . | . . . . . . . . . . . . . . . Parts Damaged . | . . . . . . . . . . . . . . . Bothacking | -11 -10 -9 -8 -7 -6 -6 -5 -5 -5 -4 -4 -3 -2 -1 ------------ Run | Yrd Mat Mat Mat Fac Fac Ext Fac Was Fac Fac Arm Res Res Acc Used RIF Installer . | . . . . . . . . . . . . . . . Robots Hacked . | . . . . . . . . . . . . . . . Non-combat . | . . . . . . . . . . . . . . . Combat . | . . . . . . . . . . . . . . . Robot Hacks Applied . | . . . . . . . . . . . . . . . Relay Couplers Released . | . . . . . . . . . . . . . . . Fabnet Peak Effective % . | . . . . . . . . . . . . . . . Robots Rewired . | . . . . . . . . . . . . . . . Allies Hacked . | . . . . . . . . . . . . . . . Hacks Repelled . | . . . . . . . . . . . . . . . Allies | -11 -10 -9 -8 -7 -6 -6 -5 -5 -5 -4 -4 -3 -2 -1 -------- Run | Yrd Mat Mat Mat Fac Fac Ext Fac Was Fac Fac Arm Res Res Acc Total Allies 6 | . . . . . . 6 . . . . . . . . Largest Group 5 | . . . . . . 5 . . . . . . . . Highest-Rated Group 160 | . . . . . . 160 . . . . . . . . Highest-Rated Ally 39 | . . . . . . 39 . . . . . . . . Total Orders . | . . . . . . . . . . . . . . . Ally Attacks 52 | . . . . . . 52 . . . . . . . . Total Damage 656 | . . . . . . 656 . . . . . . . . Kills 1 | . . . . . . 1 . . . . . . . . Allies Corrupted . | . . . . . . . . . . . . . . . Allies Melted . | . . . . . . . . . . . . . . . Intel | -11 -10 -9 -8 -7 -6 -6 -5 -5 -5 -4 -4 -3 -2 -1 ------- Run | Yrd Mat Mat Mat Fac Fac Ext Fac Was Fac Fac Arm Res Res Acc Active Infowar (turns) . | . . . . . . . . . . . . . . . Robot Analysis Total 1 | . . . . . . . . . . . 1 . . . Derelict Logs Recovered . | . . . . . . . . . . . . . . . Drone Launches . | . . . . . . . . . . . . . . . Drone Recoveries . | . . . . . . . . . . . . . . . Exploration | -11 -10 -9 -8 -7 -6 -6 -5 -5 -5 -4 -4 -3 -2 -1 ------------- Run | Yrd Mat Mat Mat Fac Fac Ext Fac Was Fac Fac Arm Res Res Acc Turns Passed 4314 | 12 41 47 220 100 369 325 240 364 491 392 405 316 208 784 Spaces Moved 3886 | 23 79 94 221 173 268 263 193 267 354 317 328 313 454 539 Core 831 | 23 79 94 78 173 29 . . . . . 16 119 81 139 Treads 496 | . . . . . . . . . . . . 95 1 400 Legs 2165 | . . . 143 . 239 263 193 267 354 317 312 77 . . Wheels . | . . . . . . . . . . . . . . . Hover . | . . . . . . . . . . . . . . . Flight 394 | . . . . . . . . . . . . 22 372 . Fastest Speed 34 | 50 50 50 50 50 50 114 111 117 116 112 50 40 34 50 Average Speed 98 | 50 50 50 86 50 106 114 112 117 117 114 111 93 39 130 Slowest Speed 169 | 50 50 50 120 50 120 114 117 117 122 118 130 145 145 169 Overloaded Moves . | . . . . . . . . . . . . . . . Propulsion Burnouts . | . . . . . . . . . . . . . . . Robots Hopped 7 | . . . . . . . . . . . . . 7 . Potential Cave-ins . | . . . . . . . . . . . . . . . Cave-ins Triggered . | . . . . . . . . . . . . . . . Exploration Rate (%) 21 | 4 18 21 29 5 11 39 9 94 15 11 27 9 11 18 Regions Visited 14 Branch Regions 2 Pre-discovered Areas . | . . . . . . . . . . . . . . . Known Exits Taken 12 | 1 1 1 1 1 1 1 . . 1 1 1 1 1 . Unknown Exits Taken . | . . . . . . . . . . . . . . . Scrap Searched . | . . . . . . . . . . . . . . . Spaces Dug . | . . . . . . . . . . . . . . . Terrain Destroyed . | . . . . . . . . . . . . . . . Melee . | . . . . . . . . . . . . . . . Projectile . | . . . . . . . . . . . . . . . AOE . | . . . . . . . . . . . . . . . Terrain Rammed . | . . . . . . . . . . . . . . . Walls Destroyed . | . . . . . . . . . . . . . . . Machines Disabled . | . . . . . . . . . . . . . . . Actions | -11 -10 -9 -8 -7 -6 -6 -5 -5 -5 -4 -4 -3 -2 -1 --------- Run | Yrd Mat Mat Mat Fac Fac Ext Fac Was Fac Fac Arm Res Res Acc Total 4371 | 22 79 93 248 186 349 287 216 319 427 345 367 337 475 621 Wait 220 | . . . 14 8 57 21 10 18 49 2 4 1 19 17 Move 3861 | 22 78 93 220 172 267 262 193 266 354 316 327 312 440 539 Hop 6 | . . . . . . . . . . . . . 6 . Pick Up 79 | . . . 5 3 8 . 4 11 8 9 7 6 4 14 Fast Attach 9 | . . . . . 5 . . . . . 1 . 1 2 Attach 60 | . . . 5 2 9 . 3 4 7 2 2 8 4 14 Detach 5 | . . . . . 1 . . . . . . 4 . . Swap 29 | . . . . . . . 1 8 4 8 7 . . 1 Drop 43 | . . . 1 1 2 . . 9 2 6 9 2 1 10 Fire . | . . . . . . . . . . . . . . . Melee . | . . . . . . . . . . . . . . . Ram 22 | . 1 . . . . . . . . . 1 . . 20 Kick 30 | . . . 3 . . 4 5 . 3 2 9 4 . . Crush 4 | . . . . . . . . . . . . . . 4 Escape Stasis . | . . . . . . . . . . . . . . . Rewire 3 | . . . . . . . . 3 . . . . . . Trap . | . . . . . . . . . . . . . . . Miscellaneous . | . . . . . . . . . . . . . . . Route ------- -11/Scrapyard -10/Materials -9/Materials -8/Materials -7/Factory -6/Factory -6/Extension -5/Factory -5/Waste -5/Factory -4/Factory -4/Armory -3/Research -2/Research -1/Access History --------- Turn | Location | Event 4 | -11/Scrapyard | Identified exit to Materials 4 | -11/Scrapyard | Discovered exit to Materials (range 15) 13 | -11/Scrapyard | Entered Materials 13 | -10/Materials | Evolved 1 slot: Power x1 49 | -10/Materials | Identified exit to Materials 49 | -10/Materials | Discovered exit to Materials (range 9) 54 | -10/Materials | Entered another Materials area 54 | -9/Materials | Evolved 2 slots: Propulsion x2 99 | -9/Materials | Identified exit to Materials 99 | -9/Materials | Discovered exit to Materials (range 7) 101 | -9/Materials | Entered another Materials area 101 | -8/Materials | Evolved 2 slots: Propulsion x2 315 | -8/Materials | Identified exit to Factory 315 | -8/Materials | Discovered exit to Factory (range 13) 320 | -8/Materials | Core integrity fell below 50% 321 | -8/Materials | Entered Factory 321 | -7/Factory | Evolved 2 slots: Propulsion x2 323 | -7/Factory | Build established: Hacker-Mutant 332 | -7/Factory | Lost 3 parts (3n) 418 | -7/Factory | Identified exit to Factory 418 | -7/Factory | Discovered exit to Factory (range 7) 421 | -7/Factory | Entered another Factory area 421 | -6/Factory | Evolved 2 slots: Propulsion x2 785 | -6/Factory | Identified exit to Extension 785 | -6/Factory | Discovered exit to Extension (range 6) 790 | -6/Factory | Entered Extension 842 | -6/Extension | Rescued a captive Derelict 862 | -6/Extension | Rescued a captive Derelict 862 | -6/Extension | Rescued a captive Derelict 891 | -6/Extension | Rescued a captive Derelict 894 | -6/Extension | Rescued a captive Derelict 929 | -6/Extension | Rescued a captive Derelict 1048 | -6/Extension | Spotted B-75 Beast 1090 | -6/Extension | Spotted B-75 Beast 1112 | -6/Extension | Identified exit to Factory 1112 | -6/Extension | Discovered exit to Factory (range 3) 1115 | -6/Extension | Entered Factory 1115 | -5/Factory | Evolved 2 slots: Propulsion x2 1144 | -5/Factory | Lost 3 allies 1355 | -5/Factory | Sucked down chute 1355 | -5/Factory | Entered Waste 1355 | -5/Waste | The area was eerily silent 1700 | -5/Waste | Identified exit to Factory 1700 | -5/Waste | Discovered exit to Factory (range 13) 1719 | -5/Waste | Entered Factory 1796 | -5/Factory | Repaired Lgt. Fission Core 1861 | -5/Factory | Spotted B-75 Beast 2192 | -5/Factory | Identified exit to Factory 2192 | -5/Factory | Discovered exit to Factory (range 16) 2210 | -5/Factory | Entered another Factory area 2210 | -4/Factory | Evolved 2 slots: Propulsion x2 2224 | -4/Factory | Lost 3 parts (1p1n1u) 2593 | -4/Factory | Identified exit to Armory 2593 | -4/Factory | Discovered exit to Armory (range 9) 2602 | -4/Factory | Entered Armory 3005 | -4/Armory | Identified exit to Research 3005 | -4/Armory | Discovered exit to Research (range 3) 3007 | -4/Armory | Entered Research 3007 | -3/Research | Evolved 2 slots: Propulsion x2 3020 | -3/Research | Lost 12 parts (2p9n1u) 3319 | -3/Research | Identified exit to Research 3319 | -3/Research | Discovered exit to Research (range 14) 3323 | -3/Research | Entered another Research area 3323 | -2/Research | Evolved 2 slots: Propulsion x2 3524 | -2/Research | Identified exit to Access 3524 | -2/Research | Discovered exit to Access (range 16) 3531 | -2/Research | Entered Access 3531 | -1/Access | Evolved 2 slots: Propulsion x2 3561 | -1/Access | Lost 3 parts (3n) 3749 | -1/Access | Spotted B-99 Colossus 4033 | -1/Access | System corruption reached 10% 4281 | -1/Access | Core integrity fell below 50% 4300 | -1/Access | Core integrity fell below 20% 4315 | -1/Access | Destroyed by Y-72 Warden with Railgun Last Messages --------------- 04274_ Slammed into S-43 Plague. 04275_ Slammed into P-80 Master. 04280_ KUMAI=ERNHSQVAQK5QN4R=7CLTMIT7WDV 04281_ Slammed into P-80 Master. 04283_ Destabilizing: Core damaged (-64). 04284_ Slammed into P-80 Master. 04284_ Drone sends a signal. 04285_ Slammed into P-80 Master. 04293_ Slug penetrates Wall. 04297_ System corrupted: Component data lost. 04298_ Slug penetrates S-43 Plague. 04298_ S-43 Plague destroyed. 04298_ Slug penetrates S-43 Plague. 04298_ S-43 Plague suffers critical hit (Destroy). 04298_ S-43 Plague destroyed. 04298_ Slug penetrates Wall. 04305_ Triggered Segregator Trap. 04305_ Arcs of energy rise from the floor. 04312_ Slug penetrates Wall. 04315_ Penetrated by Slug. Map ----- +----------------------------------------------------+ | ????########[* #? #???????????# #? | | ????# == !#%= #??? ?????????????# #? | | ????# == #[= #???##+#??????????????# #? | | ????# == #%= ##### #??????????????# ## | | ????# += ################ | | ????# ! ####### | | ????# #?????# | | ????##############+## ######### ###### | | ????????? ??# #??????????????#####+# | | ????????? ?# #??######+####??# ! | | ???????? ?# # ! ?# | | ???????# # + ?# = | | ???????# # # ! ?# == | | ???????# + / ?# !!= | | ????????? " # # """ """ ??# !!! | | ????????? """" # #?? = """???????# !!= | | ?????????????""" ?# #????####???????#= == | | ?????????????"""" ?# #???????????????# * | | ?????????????""" ??# #???????????????# | | ?????????????" ???# #???????????????# | | ??????????????###???# #???????????????# ! | | ????????????????????# #???????????????###### | | ????????????????????# #????????????????????? | | ???????????????????## ##???????????????????? | | ???????????????????# #???????????????????? | | ???????????????????#@Yp #???????????????????? | | ???????????????????# +???????????????????? | | ???????????????????# #???????????????????? | | ???????????????????## ##???????????????????? | | ????????????????????# #????????????????????? | | ????????????????????# p#????????????????????? | | ????????????????????# #????????????????????? | | ????????????????????? #????????????????????? | | ????????????????????? #????????????????????? | | ????????????????????? #????????????????????? | | ????????????????????? #????????????????????? | | ????????????????????? #????????????????????? | | ????????????????????? k#????????????????????? | | ????????????????????? #????????????????????? | | ?????????????????????? #????????????????????? | | ????????????????????????????????????????????? | | ????????????????????????????????????????????? | | ????????????????????????????????????????????? | | ????????????????????????????????????????????? | | ????????????????????????????????????????????? | | ????????????????????????????????????????????? | | ????????????????????????????????????????????? | | ????????????????????????????????????????????? | | ????????????????????????????????????????????? | | ????????????????????????????????????????????? | +----------------------------------------------------+ Best States ------------- Heat Dissipation 52 Energy Generation 51 Energy Capacity 540 Matter Stores 300 Matter Capacity 300 Sight Range 16 Terrain Scan Density 10 Armor Coverage 600 Resistance: KI 35 Resistance: TH 35 Resistance: EX 35 Resistance: EM 35 Resistance: I 35 Resistance: S 35 Resistance: P 35 Power Shielding 66 Evasion (%) 70 Recoil Reduction 20 Offensive Hacking 20 Item Schematics ----------------- None Robot Schematics ------------------ None Fabricated ------------ Nothing Repaired ---------- Lgt. Fission Core | 31% | -5/Factory Studied --------- None Alien Tech Used ----------------- None Achievements -------------- Desperate Times Immobile And Lovin' It Metal Spider Physics Hates This One Trick Rockin' Loadout That Tickles Throw Away The Key Turtlemind Challenges ------------ None Game ------ Seed LightningDisruptionFlamer Manual? 0 Play Time 00:50:25 Cumulative 61.0 hours Start 2025.11.11 @ 15:54:57 End 2025.11.11 @ 19:11:46 Sessions 3 Manual Loads 0 Difficulty Explorer Special Mode None Game No. 148 Rogue 146 Adventurer 0 Explorer 2 Win Type - Total 1 Types 1/0/0/0/0/0/0/0/0/0 Lore% 24 Gallery% 39 Achievement% 23 Wizard Run 0 Options --------- Layout 0 ASCII 0 Keyboard 0 Movement Mouse Keybinds 0 Fullscreen 2 Font 18/SmallcapsGlow Map View 76x50 Zoom Use 0% Tactical HUD 1 Map Filters NONE Filters NONE Steam 1 RUN: bebf1bb4-1908-42c9-9ed5-84b2f71c5cc3